fUST/lending_fUST_20260119
["ID","MTS","AMOUNT","RATE_DAILY","PERIOD"]
[402710194,1768817438715,-500.0,0.00011158,2]
[402710195,1768817438725,-500.0,0.00011158,2]
[402710196,1768817438735,-500.0,0.00011158,2]
[402710197,1768817438744,-373.20329916,0.00011158,2]
[402710198,1768817438754,-500.0,0.00011158,2]
[402710199,1768817438764,-500.0,0.00011158,2]
[402710200,1768817438774,-219.14014425,0.00011158,2]
[402710201,1768817438786,-280.85985575,0.00011158,2]
[402710202,1768817438796,-500.0,0.00011158,2]
[402710203,1768817438806,-500.0,0.00011158,2]
[402710204,1768817438816,-473.26518648,0.00011158,2]
[402710205,1768817438847,212.63828564,9.798e-05,2]
[402710206,1768817438860,-26.73481352,0.00011158,2]
[402710207,1768817438870,-437.89018648,0.00011158,2]
[402710269,1768817440571,-3e-08,0.00011158,2]
[402710372,1768817443629,-62.10981349,0.00011158,2]
[402710373,1768817443639,-500.0,0.00011158,2]
[402710374,1768817443649,-500.0,0.00011158,2]
[402710377,1768817443658,-500.0,0.00011158,2]
[402710379,1768817443667,-500.0,0.00011158,2]
[402710381,1768817443675,-500.0,0.00011158,2]
[402710383,1768817443686,-500.0,0.00011158,2]
[402710384,1768817443695,-500.0,0.00011158,2]
[402710386,1768817443704,-500.0,0.00011158,2]
[402710388,1768817443713,-500.0,0.00011158,2]
[402710389,1768817443723,-418.12099842,0.00011158,2]
[402710417,1768817446820,-81.87900158,0.00011158,2]
[402710418,1768817446830,-500.0,0.00011158,2]
[402710419,1768817446839,-26.23591558,0.00011158,2]
[402710420,1768817446851,-473.76408442,0.00011158,2]
[402710421,1768817446860,-500.0,0.00011158,2]
[402710422,1768817446870,-500.0,0.00011158,2]
[402710423,1768817446879,-500.0,0.00011158,2]
[402710424,1768817446889,-500.0,0.00011158,2]
[402710425,1768817446899,-261.51425805,0.00011158,2]
[402710426,1768817446909,-500.0,0.00011158,2]
[402710427,1768817446919,-1581.85697204,0.00011159,2]
[402710428,1768817446928,-1092.81,0.0001134,2]
[402710429,1768817446938,-204.8336353,0.00011707,2]
[402710430,1768817446948,-2026.870889,0.00011932,2]
[402710431,1768817446958,-328.88839808,0.00011948,2]
[402710432,1768817446967,-328.85138398,0.00012065,2]
[402710433,1768817446977,-231.7292683,0.00012065,2]
[402710434,1768817446987,-9951.71265698,0.00012066,2]
[402710435,1768817459748,238.43,9.038e-05,2]
[402710436,1768817538640,248.41,8.923e-05,2]
[402710437,1768817539059,496.82,9.734e-05,2]
[402710439,1768817617789,238.92,9.601e-05,2]
[402710440,1768817670153,-512.24022635,9.86e-05,7]
[402710441,1768817697085,238.44,9.55e-05,2]
[402710442,1768817816979,151.00000001,0.00027397,120]
[402710443,1768817884548,512.22360127,9.798e-05,2]
[402710482,1768818119019,-183.35600225,9.86e-05,7]
[402710483,1768818121673,-294.63023231,9.86e-05,7]
[402710484,1768818124878,-416.64399775,9.86e-05,7]
[402710485,1768818130879,894.63023234,9.798e-05,2]
[402710486,1768818162429,167.0,0.0002515,120]
[402710487,1768818164189,167.0,0.00026408,120]
[402710492,1768818270258,1358.48,9.77e-05,2]
[402710493,1768818315089,196.73597526,0.00027397,120]
[402710499,1768818418071,264.52,8.914e-05,2]
[402710500,1768818418496,529.05,9.724e-05,2]
[402710502,1768818498263,257.05,8.937e-05,2]
[402710503,1768818498663,514.11,9.75e-05,2]
[402710508,1768818538447,-155.83012261,9.86e-05,7]
[402710509,1768818538470,-144.16987739,9.89e-05,2]
[402710510,1768818541536,72.71020807,9.798e-05,2]
[402710511,1768818541561,227.28979193,9.798e-05,2]
[402710512,1768818573465,500.0,0.0002739,120]
[402710513,1768818576992,249.77,8.902e-05,2]
[402710514,1768818577380,499.54,9.712e-05,2]
[402710515,1768818613360,-137.18506924,9.89e-05,2]
[402710516,1768818613381,-50.47826004,9.89e-05,2]
[402710517,1768818615947,-176.17981849,9.89e-05,2]
[402710518,1768818628489,363.84314777,9.798e-05,2]
[402710519,1768818631183,8659.5670603,9.514e-05,2]
[402710520,1768818631205,3145.6618297,9.514e-05,2]
[402710541,1768818632395,-332.34192147,9.89e-05,2]
[402710542,1768818632405,-272.3701998,0.00010477,2]
[402710543,1768818632414,-300.0,0.00010509,2]
[402710544,1768818632424,-300.0,0.00010509,2]
[402710545,1768818632433,-300.0,0.00010509,2]
[402710546,1768818632443,-300.0,0.00010509,2]
[402710547,1768818632453,-1200.0,0.00010509,2]
[402710550,1768818632462,-230.19596878,0.00010509,2]
[402710551,1768818632472,-162.21048781,0.00010509,2]
[402710552,1768818632482,-500.0,0.0001051,2]
[402710553,1768818632491,-500.0,0.0001051,2]
[402710554,1768818632501,-500.0,0.0001051,2]
[402710555,1768818632511,-500.0,0.0001051,2]
[402710556,1768818632521,-500.0,0.0001051,2]
[402710557,1768818632531,-500.0,0.0001051,2]
[402710558,1768818632540,-500.0,0.0001051,2]
[402710559,1768818632550,-500.0,0.0001051,2]
[402710560,1768818632560,-500.0,0.0001051,2]
[402710561,1768818632569,-500.0,0.0001051,2]
[402710562,1768818632578,-500.0,0.0001051,2]
[402710563,1768818632588,-500.0,0.0001051,2]
[402710564,1768818632598,-500.0,0.0001051,2]
[402710565,1768818632608,-500.0,0.0001051,2]
[402710566,1768818632618,-407.94065174,0.0001051,2]
[402710567,1768818632632,-500.0,0.0001051,2]
[402710568,1768818632643,-500.0,0.0001051,2]
[402710569,1768818632653,-500.0,0.0001051,2]
[402710570,1768818632663,-412.56151303,0.0001051,2]
[402710571,1768818632673,-500.0,0.0001051,2]
[402710572,1768818632683,-500.0,0.0001051,2]
[402710573,1768818632693,-500.0,0.0001051,2]
[402710574,1768818632703,-500.0,0.0001051,2]
[402710575,1768818632713,-500.0,0.0001051,2]
[402710577,1768818632722,-500.0,0.0001051,2]
[402710579,1768818632733,-500.0,0.0001051,2]
[402710581,1768818632744,-500.0,0.0001051,2]
[402710583,1768818632753,-500.0,0.0001051,2]
[402710585,1768818632762,-500.0,0.0001051,2]
[402710587,1768818632772,-500.0,0.0001051,2]
[402710588,1768818632782,-500.0,0.0001051,2]
[402710589,1768818632792,-500.0,0.0001051,2]
[402710590,1768818632801,-227.63321798,0.0001051,2]
[402710591,1768818632810,-500.0,0.0001051,2]
[402710592,1768818632820,-500.0,0.0001051,2]
[402710594,1768818632830,-500.0,0.0001051,2]
[402710595,1768818632839,-500.0,0.0001051,2]
[402710596,1768818632848,-93.57854284,0.0001051,2]
[402710608,1768818638095,256.24,0.0002739,120]
[402710611,1768818638477,-406.42145716,0.0001051,2]
[402710612,1768818638487,-500.0,0.0001051,2]
[402710613,1768818638497,-54.46156871,0.0001051,2]
[402710614,1768818638508,-445.53843129,0.0001051,2]
[402710615,1768818638517,-500.0,0.0001051,2]
[402710616,1768818638526,-232.30307991,0.0001051,2]
[402710773,1768818643596,-267.69692009,0.0001051,2]
[402710774,1768818643606,-358.4642054,0.0001051,2]
[402710786,1768818646567,-141.5357946,0.0001051,2]
[402710787,1768818646578,-500.0,0.0001051,2]
[402710788,1768818646588,-500.0,0.0001051,2]
[402710789,1768818646597,-500.0,0.0001051,2]
[402710790,1768818646607,-500.0,0.0001051,2]
[402710791,1768818646616,-500.0,0.0001051,2]
[402710792,1768818646626,-500.0,0.0001051,2]
[402710793,1768818646635,-500.0,0.0001051,2]
[402710794,1768818646645,-57.98702743,0.0001051,2]
[402710795,1768818646784,-442.01297257,0.0001051,2]
[402710796,1768818646796,-500.0,0.0001051,2]
[402710797,1768818646805,-500.0,0.0001051,2]
[402710798,1768818646815,-500.0,0.0001051,2]
[402710799,1768818646825,-500.0,0.0001051,2]
[402710800,1768818646835,-500.0,0.0001051,2]
[402710801,1768818646845,-250.08547212,0.0001051,2]
[402710803,1768818646854,-500.0,0.0001051,2]
[402710804,1768818646864,-500.0,0.0001051,2]
[402710805,1768818646874,-500.0,0.0001051,2]
[402710806,1768818646884,-500.0,0.0001051,2]
[402710807,1768818646893,-500.0,0.0001051,2]
[402710808,1768818646903,-500.0,0.0001051,2]
[402710809,1768818646912,-500.0,0.0001051,2]
[402710810,1768818646922,-500.0,0.0001051,2]
[402710811,1768818646932,-500.0,0.0001051,2]
[402710812,1768818646942,-500.0,0.0001051,2]
[402710813,1768818646951,-500.0,0.0001051,2]
[402710814,1768818646961,-463.03084611,0.0001051,2]
[402710815,1768818646976,-36.96915389,0.0001051,2]
[402710816,1768818646986,-424.05838254,0.0001051,2]
[402710817,1768818655866,242.67,8.915e-05,2]
[402710818,1768818656456,485.33,9.726e-05,2]
[402710819,1768818681640,410.65477473,0.00027397,120]
[402710820,1768818734729,268.51,8.959e-05,2]
[402710821,1768818735157,537.02,9.773e-05,2]
[402710823,1768818815615,266.11,9.011e-05,2]
[402710824,1768818842579,4660.16185433,9.798e-05,2]
[402710825,1768818850633,394.54631597,9.798e-05,2]
[402710826,1768818850660,4605.45368403,9.798e-05,2]
[402710827,1768818871482,326.3,0.00027397,120]
[402710828,1768818896135,262.73,9.013e-05,2]
[402710829,1768818976327,259.38,9.03e-05,2]
[402710830,1768819060001,256.08,9.02e-05,2]
[402710831,1768819083681,293.94,3.436e-05,2]
[402710832,1768819140051,252.82,8.973e-05,2]
[402710833,1768819140438,505.65,9.789e-05,2]
[402710834,1768819206431,3563.95631597,9.456e-05,2]
[402710835,1768819206453,6436.04368403,9.456e-05,2]
[402710836,1768819221184,-300.0,9.927e-05,2]
[402710837,1768819221205,-200.0,9.927e-05,2]
[402710838,1768819221732,253.51,9.04e-05,2]
[402710839,1768819301101,250.28,8.995e-05,2]
[402710840,1768819303942,-300.0,9.813e-05,2]
[402710841,1768819360254,-200.56,9.813e-05,2]
[402710842,1768819360275,-359.0,9.927e-05,2]
[402710843,1768819360296,-289.47775568,9.996e-05,2]
[402710844,1768819375074,-669.78,0.000103,2]
[402710845,1768819375097,-300.0,0.00010495,2]
[402710846,1768819375118,-30.22,0.00010496,2]
[402710847,1768819376741,-1000.0,0.00010496,2]
[402710848,1768819377964,-1000.0,0.00010496,2]
[402710849,1768819379013,-1000.0,0.00010496,2]
[402710850,1768819379945,240.72,8.998e-05,2]
[402710851,1768819380061,-1000.0,0.00010496,2]
[402710852,1768819381108,-481.45,9.816e-05,2]
[402710853,1768819381129,-518.55,0.00010496,2]
[402710854,1768819382583,-300.0,0.00010495,2]
[402710855,1768819382604,-700.0,0.00010496,2]
[402710856,1768819383648,-483.3123844,0.00010496,2]
[402710857,1768819383672,-516.6876156,0.00010496,2]
[402710858,1768819385143,-1000.0,0.00010496,2]
[402710859,1768819460161,231.53,8.991e-05,2]
[402710860,1768819468448,-231.46878977,9.809e-05,2]
[402710861,1768819471164,-172.61,9.809e-05,2]
[402710862,1768819539092,228.28,6.713e-05,2]
[402710863,1768819539309,456.57,7.324e-05,2]
[402710864,1768819539781,684.85,7.934e-05,2]
[402710865,1768819540170,913.13,8.544e-05,2]
[402710866,1768819540586,305.09631597,9.154e-05,2]
[402710867,1768819540620,836.32368403,9.154e-05,2]
[402710868,1768819540988,1369.7,9.765e-05,2]
[402710869,1768819616455,202.04,8.984e-05,2]
[402710870,1768819696243,199.46,8.914e-05,2]
[402710871,1768819696653,398.93,9.725e-05,2]
[402710872,1768819709039,254.5625,0.00027387,120]
[402710874,1768819774901,191.85,8.905e-05,2]
[402710875,1768819775308,383.7,9.715e-05,2]
[402710920,1768819832735,-831.34278783,9.946e-05,2]
[402710922,1768819832744,-559.0,9.946e-05,2]
[402710924,1768819832754,-283.68820056,9.996e-05,2]
[402710926,1768819832763,-250.0,0.00010412,2]
[402710928,1768819832773,-616.417166,0.00010431,2]
[402710930,1768819832782,-1128.21900365,0.00010496,2]
[402710932,1768819832793,-1020.28617005,0.00010496,2]
[402710934,1768819832803,-300.0,0.00010501,2]
[402710936,1768819832812,-300.0,0.00010501,2]
[402710938,1768819832821,-300.0,0.00010501,2]
[402710940,1768819832830,-1200.0,0.00010501,2]
[402710942,1768819832839,-500.0,0.00010501,2]
[402710944,1768819832848,-500.0,0.00010501,2]
[402710946,1768819832858,-500.0,0.00010501,2]
[402710948,1768819832867,-500.0,0.00010501,2]
[402710950,1768819832876,-500.0,0.00010501,2]
[402710952,1768819832886,-500.0,0.00010501,2]
[402710954,1768819832896,-500.0,0.00010501,2]
[402710956,1768819832905,-541.65151131,0.00010501,2]
[402710958,1768819832915,-500.0,0.00010501,2]
[402710960,1768819832925,-500.0,0.00010501,2]
[402710962,1768819832933,-500.0,0.00010501,2]
[402710964,1768819832942,-500.0,0.00010501,2]
[402710966,1768819832952,-500.0,0.00010501,2]
[402710968,1768819832961,-304.33174591,0.00010501,2]
[402710970,1768819832974,-500.0,0.00010501,2]
[402710972,1768819832983,-500.0,0.00010501,2]
[402710974,1768819832992,-161.13717815,0.00010502,2]
[402710976,1768819833001,-153.0,0.00010503,2]
[402710978,1768819833010,-153.0,0.00010503,2]
[402710980,1768819833019,-152.0,0.00010503,2]
[402710982,1768819833029,-152.0,0.00010503,2]
[402710984,1768819833038,-152.0,0.00010503,2]
[402710986,1768819833047,-152.0,0.00010503,2]
[402710988,1768819833056,-152.0,0.00010503,2]
[402710990,1768819833068,-240.0,0.00010503,2]
[402710992,1768819833078,-153.0,0.00010503,2]
[402710994,1768819833089,-153.0,0.00010503,2]
[402710996,1768819833098,-276.0,0.00010503,2]
[402710998,1768819833107,-153.0,0.00010503,2]
[402711000,1768819833118,-153.0,0.00010503,2]
[402711002,1768819833127,-153.0,0.00010503,2]
[402711004,1768819833137,-14086.70361603,0.00010503,2]
[402711113,1768819841096,-500.0,0.00010501,2]
[402711115,1768819841108,-108.67807328,0.00010501,2]
[402711131,1768819841254,-3e-08,0.00010501,2]
[402711197,1768819843691,-273.15982425,0.00010501,2]
[402711207,1768819846765,-118.16210244,0.00010501,2]
[402711208,1768819846777,-500.0,0.00010501,2]
[402711209,1768819846787,-500.0,0.00010501,2]
[402711210,1768819846799,-500.0,0.00010501,2]
[402711211,1768819846810,-500.0,0.00010501,2]
[402711212,1768819846821,-500.0,0.00010501,2]
[402711213,1768819846832,-500.0,0.00010501,2]
[402711214,1768819846843,-500.0,0.00010501,2]
[402711215,1768819846854,-500.0,0.00010501,2]
[402711216,1768819846865,-500.0,0.00010501,2]
[402711217,1768819846876,-500.0,0.00010501,2]
[402711218,1768819846886,-500.0,0.00010501,2]
[402711219,1768819846897,-500.0,0.00010501,2]
[402711220,1768819846908,-500.0,0.00010501,2]
[402711221,1768819846919,-500.0,0.00010501,2]
[402711222,1768819846930,-500.0,0.00010501,2]
[402711223,1768819846942,-500.0,0.00010501,2]
[402711224,1768819846954,-500.0,0.00010501,2]
[402711225,1768819846965,-500.0,0.00010501,2]
[402711226,1768819846975,-500.0,0.00010501,2]
[402711227,1768819846986,-500.0,0.00010501,2]
[402711228,1768819846997,-500.0,0.00010501,2]
[402711229,1768819847008,-500.0,0.00010501,2]
[402711230,1768819847019,-239.46133712,0.00010501,2]
[402711231,1768819847030,-500.0,0.00010501,2]
[402711232,1768819847040,-500.0,0.00010501,2]
[402711233,1768819847051,-500.0,0.00010501,2]
[402711234,1768819847062,-153.0,0.00010503,2]
[402711235,1768819847075,-11168.45343023,0.00010503,2]
[402711236,1768819854572,184.52,8.903e-05,2]
[402711237,1768819854672,369.05,9.713e-05,2]
[402711238,1768819933460,286.37,8.772e-05,2]
[402711239,1768819933880,572.75,9.57e-05,2]
[402711240,1768820017862,275.44,8.728e-05,2]
[402711241,1768820018261,550.88,9.522e-05,2]
[402711242,1768820020969,202.72209468,0.00022406,120]
[402711243,1768820097369,264.92,8.587e-05,2]
[402711244,1768820097768,529.84,9.368e-05,2]
[402711245,1768820106365,205.0,0.00024398,120]
[402711246,1768820107639,205.0,0.00025618,120]
[402711247,1768820130293,270.0,0.0002304,120]
[402711248,1768820131706,270.0,0.00024192,120]
[402711249,1768820133082,270.0,0.00025402,120]
[402711250,1768820134384,270.0,0.00026672,120]
[402711251,1768820175885,254.81,8.578e-05,2]
[402711252,1768820176292,509.61,9.358e-05,2]
[402711253,1768820254823,245.08,8.545e-05,2]
[402711254,1768820255305,490.16,9.322e-05,2]
[402711255,1768820309832,-5000.0,0.00010036,2]
[402711256,1768820333433,235.97,8.718e-05,2]
[402711257,1768820333829,471.95,9.511e-05,2]
[402711258,1768820407406,181.0,0.00023819,120]
[402711259,1768820412714,226.96,8.71e-05,2]
[402711260,1768820413141,453.93,9.502e-05,2]
[402711261,1768820417923,2564.6131412,9.693e-05,2]
[402711262,1768820431310,180.0,0.00024997,120]
[402711263,1768820432583,180.0,0.00026247,120]
[402711264,1768820434939,202.3657,0.00027,120]
[402711265,1768820499595,218.3,8.721e-05,2]
[402711266,1768820500007,436.6,9.513e-05,2]
[402711267,1768820578411,209.96,8.724e-05,2]
[402711268,1768820578826,419.93,9.517e-05,2]
[402711269,1768820657914,201.95,8.718e-05,2]
[402711270,1768820658345,403.89,9.511e-05,2]
[402711271,1768820687199,4863.8768588,9.49e-05,2]
[402711272,1768820687223,839.8573405,9.49e-05,2]
[402711273,1768820728682,182.0,0.00025376,120]
[402711274,1768820736376,194.24,8.424e-05,2]
[402711275,1768820736773,388.47,8.825e-05,2]
[402711276,1768820737179,582.71,9.226e-05,2]
[402711277,1768820737584,776.94,9.628e-05,2]
[402711278,1768820814122,169.51,8.462e-05,2]
[402711279,1768820814700,339.03,8.865e-05,2]
[402711280,1768820815102,508.54,9.268e-05,2]
[402711281,1768820815494,678.06,9.671e-05,2]
[402711282,1768820862627,-5000.0,9.971e-05,2]
[402711283,1768820865776,-286.88933673,0.0001,2]
[402711284,1768820865819,-468.46119808,0.0001007,2]
[402711285,1768820865851,-1873.84479233,0.0001007,2]
[402711286,1768820865892,-525.46856297,0.0001007,2]
[402711287,1768820868390,-3690.68221978,0.0001007,2]
[402711288,1768820871823,-5000.0,9.969e-05,2]
[402711289,1768820874914,-2504.63083067,0.0001007,2]
[402711290,1768820894484,5000.0,9.79e-05,2]
[402711291,1768820894727,295.88,8.851e-05,2]
[402711292,1768820895119,443.82,9.253e-05,2]
[402711293,1768820895524,591.76,9.656e-05,2]
[402711294,1768820916080,500.0,0.00027397,120]
[402711295,1768820917000,3668.55,9.79e-05,2]
[402711296,1768820917023,1331.45,9.79e-05,2]
[402711297,1768820939081,5000.0,9.79e-05,2]
[402711298,1768820961660,3668.56,9.79e-05,2]
[402711299,1768820961684,500.09721217,9.79e-05,2]
[402711300,1768820977142,261.99,8.868e-05,2]
[402711301,1768820977543,392.98,9.271e-05,2]
[402711302,1768820977933,523.98,9.674e-05,2]
[402711305,1768820984494,5000.0,9.79e-05,2]
[402711419,1768821040117,-358.36397932,9.969e-05,2]
[402711421,1768821040128,-4641.63602068,9.969e-05,2]
[402711423,1768821040137,-300.0,0.00010069,2]
[402711425,1768821040147,-300.0,0.00010069,2]
[402711427,1768821040156,-1200.0,0.00010069,2]
[402711429,1768821040165,-625.00409707,0.0001007,2]
[402711837,1768821055567,162.74,8.405e-05,2]
[402711838,1768821056010,325.48,8.806e-05,2]
[402711839,1768821056417,488.22,9.206e-05,2]
[402711840,1768821056813,650.96,9.606e-05,2]
[402711841,1768821133547,284.05,8.765e-05,2]
[402711842,1768821133958,426.08,9.163e-05,2]
[402711843,1768821134351,568.11,9.562e-05,2]
[402711844,1768821159356,4365.74424159,9.567e-05,2]
[402711846,1768821215260,251.52,8.862e-05,2]
[402711847,1768821215664,377.28,9.265e-05,2]
[402711848,1768821216073,503.03,9.668e-05,2]
[402711849,1768821250168,4502.43575841,9.79e-05,2]
[402711850,1768821250195,497.56424159,9.79e-05,2]
[402711851,1768821269974,2020.716,0.00027397,120]
[402711852,1768821274644,5000.0,9.798e-05,2]
[402711853,1768821277995,500.0,0.00027397,120]
[402711854,1768821278231,503.09372034,0.00027397,120]
[402711855,1768821284843,551.53704596,9.567e-05,2]
[402711856,1768821287531,2206.14818382,9.567e-05,2]
[402711857,1768821289780,2242.32477022,9.567e-05,2]
[402711858,1768821289805,2716.54480997,9.567e-05,2]
[402711859,1768821293839,222.71,8.864e-05,2]
[402711860,1768821294268,334.06,9.266e-05,2]
[402711861,1768821294655,445.41,9.669e-05,2]
[402711862,1768821297310,5000.0,9.798e-05,2]
[402711863,1768821319741,1281.28519003,9.798e-05,2]
[402711864,1768821319764,3718.71480997,9.798e-05,2]
[402711865,1768821370779,197.2,8.976e-05,2]
[402711866,1768821371202,295.8,9.384e-05,2]
[402711867,1768821371637,394.39,9.792e-05,2]
[402711868,1768821454823,174.61,9.01e-05,2]
[402711869,1768821455084,261.91,9.419e-05,2]
[402711870,1768821531513,163.5,8.989e-05,2]
[402711871,1768821531936,245.25,9.397e-05,2]
[402711872,1768821607987,153.09,8.983e-05,2]
[402711873,1768821608396,229.64,9.392e-05,2]
[402711874,1768821655399,4165.90519003,9.381e-05,2]
[402711875,1768821655420,10000.01,9.381e-05,2]
[402711876,1768821655441,3485.41632797,9.381e-05,2]
[402711877,1768821692912,215.03,9.404e-05,2]
[402711878,1768821771246,206.82,9.403e-05,2]
[402711879,1768821846949,198.92,9.41e-05,2]
[402711880,1768821921861,191.32,9.399e-05,2]
[402711883,1768821998489,184.02,9.4e-05,2]
[402711885,1768822061658,3381.88486943,9.577e-05,2]
[402711886,1768822073393,176.99,9.41e-05,2]
[402711888,1768822147642,170.24,9.391e-05,2]
[402711889,1768822165233,500.0,0.00027397,120]
[402711890,1768822223455,163.74,9.453e-05,2]
[402711988,1768822238065,-281.15154999,9.808e-05,2]
[402711990,1768822238075,-218.31,9.864e-05,2]
[402711992,1768822238084,-300.0,0.00010063,2]
[402711993,1768822238094,-1200.0,0.00010063,2]
[402711995,1768822238103,-500.0,0.00010064,2]
[402711997,1768822238112,-323.94613371,0.00010064,2]
[402711999,1768822238122,-500.0,0.00010064,2]
[402712001,1768822238131,-500.0,0.00010064,2]
[402712003,1768822238141,-256.03686066,0.00010064,2]
[402712004,1768822238151,-500.0,0.00010064,2]
[402712006,1768822238161,-449.07239015,0.00010064,2]
[402712008,1768822238171,-500.0,0.00010064,2]
[402712010,1768822238181,-500.0,0.00010064,2]
[402712012,1768822238191,-259.96943669,0.00010064,2]
[402712014,1768822238201,-500.0,0.00010064,2]
[402712016,1768822238211,-3231.70363427,0.00010064,2]
[402712107,1768822240453,-3151.57292295,0.00010064,2]
[402712108,1768822240463,-2150.738,0.00010078,2]
[402712109,1768822240471,-272.89,0.00010275,2]
[402712110,1768822240480,-1000.294258,0.00010285,2]
[402712111,1768822240489,-1564.384038,0.00010321,2]
[402712112,1768822240498,-153.0,0.000105,2]
[402712113,1768822240507,-553.64373807,0.00010504,2]
[402712114,1768822240515,-507.23533428,0.0001051,2]
[402712115,1768822240524,-2028.94133714,0.0001051,2]
[402712116,1768822240534,-4560.55289056,0.0001051,2]
[402712117,1768822240542,-962.16002293,0.0001051,2]
[402712118,1768822240551,-1604.88353695,0.0001051,2]
[402712180,1768822370717,184.97,9.751e-05,2]
[402712182,1768822443051,175.55,9.639e-05,2]
[402712183,1768822462251,1265.1088026,9.798e-05,2]
[402712184,1768822462273,3734.8911974,9.798e-05,2]
[402712185,1768822484549,263.64472173,9.798e-05,2]
[402712187,1768822514643,168.12,9.237e-05,2]
[402712188,1768822515049,224.16,9.639e-05,2]
[402712189,1768822518145,-1000.0,9.941e-05,2]
[402712190,1768822519330,-1000.0,9.941e-05,2]
[402712191,1768822520361,-1000.0,9.941e-05,2]
[402712192,1768822521318,-1000.0,9.941e-05,2]
[402712193,1768822522289,-1000.0,9.941e-05,2]
[402712194,1768822587128,153.14,9.131e-05,2]
[402712195,1768822587559,204.19,9.528e-05,2]
[402712196,1768822659865,163.49,9.229e-05,2]
[402712197,1768822660063,217.98,9.631e-05,2]
[402712198,1768822681865,500.0,0.00027397,120]
[402712199,1768822683803,151.07,3.436e-05,2]
[402712200,1768822734195,198.56,9.63e-05,2]
[402712201,1768822737379,1253.24211018,9.798e-05,2]
[402712202,1768822806856,188.45,9.672e-05,2]
[402712203,1768822836140,500.0,0.00027397,120]
[402712210,1768823062413,3079.07197069,9.798e-05,2]
[402712211,1768823062436,1854.34131747,9.798e-05,2]
[402712214,1768823084167,205.82,9.123e-05,2]
[402712215,1768823084560,308.74,9.537e-05,2]
[402712216,1768823084839,3833.98545334,9.798e-05,2]
[402712217,1768823163914,278.27,6.595e-05,2]
[402712218,1768823164328,417.41,6.895e-05,2]
[402712219,1768823164718,556.54,7.194e-05,2]
[402712220,1768823165131,695.68,7.494e-05,2]
[402712221,1768823165542,834.82,7.794e-05,2]
[402712222,1768823165952,973.95,8.094e-05,2]
[402712223,1768823166397,40.45322919,8.393e-05,2]
[402712224,1768823166422,1072.63677081,8.393e-05,2]
[402712225,1768823166819,1252.23,8.693e-05,2]
[402712226,1768823167229,1391.36,8.993e-05,2]
[402712227,1768823240894,174.05,7.332e-05,2]
[402712228,1768823241298,217.56,7.637e-05,2]
[402712229,1768823241714,261.07,7.943e-05,2]
[402712230,1768823242537,304.58,8.248e-05,2]
[402712231,1768823245058,348.09,8.554e-05,2]
[402712232,1768823245260,391.61,8.859e-05,2]
[402712233,1768823245661,435.12,9.165e-05,2]
[402712260,1768823392980,2239.90791467,9.477e-05,2]
[402712268,1768823432013,-559.0,9.953e-05,2]
[402712269,1768823432022,-281.2258183,9.953e-05,2]
[402712270,1768823432031,-4336.1184395,0.00010169,2]
[402712271,1768823432041,-287.95608236,0.00010413,2]
[402712272,1768823432049,-1200.0,0.00010492,2]
[402712273,1768823432059,-300.0,0.00010493,2]
[402712274,1768823432068,-300.0,0.00010493,2]
[402712275,1768823432078,-300.0,0.00010493,2]